bitfinex/quotes_SOLUSD_20250602
["timestamp","ask_amount","ask_price","bid_price","bid_amount"]
[1748848629339,159.1,156.46,156.42,17.99966897]
[1748848629622,159.1,156.46,156.43,17.99966897]
[1748848630833,177.09966897,156.46,156.42,17.99966897]
[1748848631132,177.09966897,156.46,156.43,6.39263568]
[1748848632522,159.1,156.46,156.43,6.39263568]
[1748848632930,0.69801002,156.48,156.45,43.99966897]
[1748848633239,0.69801002,156.48,156.47,6.39100146]
[1748848638612,0.69801002,156.48,156.47,24.39067043]
[1748848639343,0.69801002,156.48,156.47,6.39100146]
[1748848648142,0.69801002,156.48,156.47,24.39067043]
[1748848649621,0.8852523,156.54,156.5,26.0]
[1748848649849,0.8852523,156.54,156.53,17.99966897]
[1748848650017,0.8852523,156.54,156.53,50.38822068]
[1748848650950,0.8852523,156.54,156.53,32.38855171]
[1748848651112,0.8852523,156.54,156.53,50.38822068]
[1748848651447,0.8852523,156.54,156.53,32.38855171]
[1748848651619,0.8852523,156.54,156.53,50.38822068]
[1748848654736,0.8852523,156.54,156.53,50.29755068]
[1748848655289,0.8852523,156.54,156.53,32.29788171]
[1748848655741,0.8852523,156.54,156.53,50.29755068]
[1748848657131,0.8852523,156.54,156.53,32.29788171]
[1748848657659,0.8852523,156.54,156.53,6.38855171]
[1748848658153,37.53457013,156.54,156.52,6.38885793]
[1748848658448,17.99966897,156.53,156.52,6.38885793]
[1748848658755,37.53457013,156.54,156.52,6.38885793]
[1748848662846,0.8852523,156.54,156.52,6.38885793]
[1748848664927,0.8852523,156.54,156.52,24.3885269]
[1748848665766,0.8852523,156.54,156.53,17.99966897]
[1748848666735,0.8852523,156.54,156.53,24.38822068]
[1748848670370,0.8852523,156.54,156.53,6.38855171]
[1748848671028,0.8852523,156.54,156.52,6.38895987]
[1748848671234,0.8852523,156.54,156.52,24.38862884]
[1748848672647,0.8852523,156.54,156.53,43.99966897]
[1748848672965,0.8852523,156.54,156.53,50.38822068]
[1748848674438,0.8852523,156.54,156.53,24.38822068]
[1748848674658,0.8852523,156.54,156.53,30.61352068]
[1748848676248,0.8852523,156.54,156.53,24.38822068]
[1748848679185,12.5,156.56,156.55,44.03879951]
[1748848679186,0.32205316,156.56,156.55,44.03879951]
[1748848679461,0.32205316,156.56,156.55,65.33913054]
[1748848680158,0.32205316,156.56,156.55,83.33879951]
[1748848680359,0.32205316,156.56,156.55,65.19696897]
[1748848680558,0.32205316,156.56,156.55,65.17696897]
[1748848681259,0.32205316,156.56,156.55,71.56470451]
[1748848682448,0.32205316,156.56,156.55,71.70686608]
[1748848682656,10.3,156.63,156.58,26.0]
[1748848682864,10.3,156.63,156.62,17.99966897]
[1748848683278,18.64964886,156.69,156.62,17.99966897]
[1748848683487,17.99966897,156.66,156.62,17.99966897]
[1748848684489,10.3,156.66,156.63,24.38414193]
[1748848684653,10.3,156.66,156.63,40.34532433]
[1748848684955,17.99966897,156.67,156.63,40.34532433]
[1748848685287,10.3,156.66,156.63,40.34532433]
[1748848686366,10.3,156.66,156.63,22.34565536]
[1748848686670,13.56714688,156.64,156.63,6.38447296]
[1748848687166,36.64931783,156.65,156.63,6.38447296]
[1748848688446,10.3,156.66,156.63,24.38414193]
[1748848688823,28.29966897,156.66,156.63,22.34565536]
[1748848689271,148.9,156.68,156.66,26.0]
[1748848689286,10.3,156.67,156.66,26.0]
[1748848690262,10.5,156.71,156.68,6.38243553]
[1748848690356,28.49966897,156.71,156.68,6.38243553]
[1748848690551,10.5,156.71,156.68,6.38243553]
[1748848690865,28.49966897,156.71,156.68,6.38243553]
[1748848691199,17.99966897,156.7,156.68,6.38243553]
[1748848691358,28.49966897,156.71,156.68,6.38243553]
[1748848691552,10.5,156.71,156.68,6.38243553]
[1748848691980,28.49966897,156.71,156.68,6.38243553]
[1748848694973,10.5,156.71,156.69,17.99966897]
[1748848696259,10.5,156.71,156.68,22.33852437]
[1748848696680,18.64964886,156.73,156.7,26.0]
[1748848696860,10.5,156.71,156.7,26.0]
[1748848698386,10.5,156.71,156.7,32.71904914]
[1748848698957,10.5,156.71,156.7,6.71904914]
[1748848698958,28.49966897,156.71,156.7,6.71904914]
[1748848699367,28.49966897,156.71,156.7,6.64967475]
[1748848699583,28.49966897,156.71,156.7,6.64094055]
[1748848699983,28.49966897,156.71,156.7,6.58285021]
[1748848701176,10.5,156.71,156.7,6.58285021]
[1748848701354,28.49966897,156.71,156.7,6.58285021]
[1748848701777,10.5,156.71,156.7,6.58285021]
[1748848704060,10.5,156.71,156.7,32.58285021]
[1748848704288,10.5,156.73,156.7,66.33534222]
[1748848704672,28.49966897,156.73,156.7,49.03395481]
[1748848704872,10.5,156.73,156.7,66.83534222]
[1748848705225,10.5,156.73,156.71,18.14003482]
[1748848705405,17.99966897,156.76,156.72,17.99966897]
[1748848705655,18.64964886,156.78,156.73,43.99966897]
[1748848705884,10.5,156.75,156.74,6.37999234]
[1748848706509,28.49966897,156.75,156.74,6.37999234]
[1748848706677,10.5,156.75,156.74,6.37999234]
[1748848707571,10.5,156.75,156.74,6.59506444]
[1748848709284,28.49966897,156.75,156.74,6.59506444]
[1748848709458,10.5,156.75,156.74,6.37999234]
[1748848710389,28.49966897,156.75,156.73,0.2306501]
[1748848711075,28.49966897,156.75,156.72,6.38080653]
[1748848711281,10.5,156.75,156.72,24.3804755]
[1748848711595,10.5,156.75,156.72,6.88080653]
[1748848711784,10.5,156.75,156.72,24.8804755]
[1748848712184,28.49966897,156.75,156.72,6.88080653]
[1748848712384,28.49966897,156.75,156.72,6.38080653]
[1748848712734,17.99966897,156.73,156.72,6.38080653]
[1748848714314,29.14964886,156.75,156.72,6.38080653]
[1748848714489,36.64931783,156.74,156.72,6.38080653]
[1748848715975,17.99966897,156.74,156.72,6.38080653]
[1748848716890,17.99966897,156.73,156.72,6.38080653]
[1748848718401,17.99966897,156.73,156.71,6.59087588]
[1748848718611,17.99966897,156.72,156.71,6.59087588]
[1748848718906,17.99966897,156.73,156.71,6.59087588]
[1748848719488,50.54,156.75,156.71,6.59087588]
[1748848719688,28.49966897,156.72,156.71,6.59087588]
[1748848719892,47.14931783,156.72,156.71,0.20980979]
[1748848720199,47.14931783,156.72,156.71,6.59102349]
[1748848721882,47.14931783,156.72,156.71,0.20980979]
[1748848726593,10.5,156.72,156.71,6.59102349]
[1748848726784,28.49966897,156.72,156.71,6.59102349]
[1748848727408,47.14931783,156.72,156.71,0.20980979]
[1748848728807,71.52979333,156.72,156.71,0.20980979]
[1748848729326,18.64964886,156.68,156.62,1.5174]
[1748848729601,17.99966897,156.65,156.62,1.5174]
[1748848729728,28.69966897,156.65,156.62,1.5174]
[1748848730093,28.69966897,156.65,156.63,6.38447296]
[1748848734286,17.99966897,156.64,156.62,6.3847641]
[1748848734454,17.99966897,156.63,156.62,6.3847641]
[1748848734594,18.64964886,156.64,156.62,6.3847641]
[1748848734817,17.99966897,156.63,156.62,6.3847641]
[1748848735523,17.99966897,156.63,156.6,6.38569604]
[1748848736498,18.64964886,156.64,156.6,6.38569604]
[1748848736698,17.99966897,156.63,156.6,6.38569604]
[1748848738007,17.99966897,156.64,156.6,40.34960511]
[1748848738528,28.69966897,156.65,156.61,17.99966897]
[1748848738701,17.99966897,156.64,156.6,40.34960511]
[1748848739279,17.99966897,156.63,156.6,22.34993614]
[1748848740023,29.34964886,156.65,156.6,22.34993614]
[1748848740216,17.99966897,156.64,156.6,40.34960511]
[1748848741373,28.69966897,156.65,156.61,17.99966897]
[1748848741903,17.99966897,156.64,156.6,40.34960511]
[1748848742123,148.9,156.67,156.6,40.34960511]
[1748848742434,127.99578393,156.72,156.64,17.99966897]
[1748848742629,10.7,156.68,156.65,17.99966897]
[1748848743130,10.7,156.68,156.64,17.99966897]
[1748848743517,10.7,156.68,156.61,24.38495726]
[1748848743518,17.99966897,156.65,156.61,24.38495726]
[1748848743914,29.34964886,156.68,156.62,17.99966897]
[1748848744109,17.99966897,156.67,156.62,17.99966897]
[1748848745008,47.34931783,156.68,156.64,17.99966897]
[1748848745833,47.34931783,156.68,156.65,6.38365783]
[1748848746004,17.99966897,156.67,156.65,6.38365783]
[1748848746405,17.99966897,156.66,156.65,6.38365783]
[1748848746804,17.99966897,156.67,156.65,6.38365783]
[1748848747616,17.99966897,156.66,156.61,15.96322073]
[1748848747925,17.99966897,156.66,156.6,6.38569604]
[1748848747926,17.99966897,156.64,156.6,6.38569604]
[1748848748150,17.99966897,156.63,156.6,6.38569604]
[1748848748638,18.64964886,156.66,156.61,17.99966897]
[1748848748639,17.99966897,156.66,156.61,17.99966897]
[1748848748803,17.99966897,156.66,156.62,17.99966897]
[1748848750811,17.99966897,156.66,156.63,6.38447296]
[1748848751451,17.99966897,156.65,156.63,6.38447296]
[1748848752443,17.99966897,156.64,156.63,6.38447296]
[1748848752644,17.99966897,156.64,156.59,41.96429284]
[1748848752815,17.99966897,156.63,156.6,6.38569604]
[1748848753317,17.99966897,156.62,156.6,6.38569604]
[1748848754224,17.99966897,156.61,156.59,6.38595643]
[1748848754417,17.99966897,156.6,156.59,6.38595643]
[1748848756840,17.99966897,156.6,156.57,6.38691958]
[1748848758438,17.99966897,156.59,156.57,6.38691958]
[1748848759250,17.99966897,156.59,156.56,22.35475711]
[1748848760726,17.99966897,156.59,156.56,6.38732754]
[1748848760931,17.99966897,156.58,156.56,6.38732754]
[1748848764252,18.64964886,156.61,156.56,6.38732754]
[1748848764437,17.99966897,156.59,156.56,6.38732754]
[1748848765431,18.64964886,156.61,156.56,6.38732754]
[1748848765752,17.99966897,156.59,156.56,6.38732754]
[1748848766244,17.99966897,156.58,156.56,6.38732754]
[1748848767055,17.99966897,156.57,156.56,6.38732754]
[1748848768056,17.99966897,156.57,156.55,6.61081005]
[1748848768946,18.64964886,156.59,156.55,6.61081005]
[1748848769151,17.99966897,156.57,156.55,6.61081005]
[1748848770754,17.99966897,156.56,156.53,6.38855171]
[1748848772739,17.99966897,156.56,156.53,22.35993099]
[1748848773060,17.99966897,156.57,156.53,40.35959996]
[1748848774739,17.99966897,156.56,156.53,22.35993099]
[1748848776333,17.99966897,156.57,156.53,40.35959996]
[1748848777869,17.99966897,156.56,156.53,22.35993099]
[1748848778246,17.99966897,156.54,156.53,6.38855171]
[1748848778462,17.99966897,156.54,156.52,6.38895987]
[1748848778947,17.99966897,156.53,156.52,6.38895987]
[1748848779142,18.64964886,156.55,156.52,6.38895987]
[1748848779399,29.28964886,156.56,156.52,40.36102853]
[1748848779400,28.63966897,156.56,156.52,40.36102853]
[1748848779581,10.64,156.56,156.53,17.99966897]
[1748848780361,10.64,156.56,156.54,6.3881436]
[1748848787464,28.63966897,156.56,156.54,6.3881436]
[1748848789080,17.99966897,156.57,156.54,6.3881436]
[1748848789400,17.99966897,156.57,156.53,22.35993099]
[1748848790978,17.99966897,156.57,156.53,17.99966897]
[1748848791187,148.9,156.59,156.55,17.99966897]
[1748848791423,148.9,156.59,156.57,17.99966897]
[1748848791424,159.46,156.59,156.57,17.99966897]
[1748848791873,10.56,156.59,156.57,17.99966897]
[1748848792063,18.64964886,156.63,156.58,17.99966897]
[1748848792259,18.64964886,156.63,156.59,17.99966897]
[1748848792661,36.64931783,156.63,156.59,17.99966897]
[1748848793124,10.56,156.64,156.6,40.34960511]
[1748848793360,28.55966897,156.64,156.6,22.34993614]
[1748848797655,10.56,156.64,156.62,17.99966897]
[1748848797854,109.91966897,156.66,156.62,17.99966897]
[1748848798054,109.91966897,156.66,156.61,17.99966897]
[1748848798276,91.92,156.66,156.61,57.67966897]
[1748848798461,109.91966897,156.66,156.62,17.99966897]
[1748848798974,17.99966897,156.65,156.61,57.67966897]
[1748848799374,17.99966897,156.65,156.62,6.3848806]
[1748848800685,17.99966897,156.64,156.62,6.3848806]
[1748848801066,102.48,156.66,156.62,6.3848806]
[1748848801287,17.99966897,156.65,156.62,6.3848806]
[1748848802780,102.48,156.66,156.62,6.3848806]
[1748848802958,17.99966897,156.65,156.62,6.3848806]
[1748848803883,102.48,156.66,156.62,24.38454957]
[1748848804082,102.48,156.66,156.63,17.99966897]
[1748848804260,102.48,156.66,156.64,17.99966897]
[1748848804461,10.56,156.66,156.64,17.99966897]
[1748848804980,10.56,156.66,156.65,6.38365783]
[1748848805655,47.20931783,156.66,156.63,6.38447296]
[1748848805855,29.20964886,156.66,156.63,6.38447296]
[1748848806067,10.56,156.66,156.63,6.38447296]
[1748848806285,28.55966897,156.66,156.63,6.38447296]
[1748848807061,17.99966897,156.64,156.62,6.3848806]
[1748848808490,10.56,156.66,156.62,6.3848806]
[1748848808491,17.99966897,156.63,156.62,6.3848806]
[1748848808777,17.99966897,156.64,156.62,6.3848806]
[1748848808991,17.99966897,156.63,156.6,15.96410481]
[1748848810184,17.99966897,156.63,156.6,22.34980085]
[1748848810486,17.99966897,156.62,156.6,6.38569604]
[1748848811491,17.99966897,156.63,156.6,6.38569604]
[1748848811788,17.99966897,156.62,156.6,6.38569604]
[1748848811974,17.99966897,156.61,156.6,6.38569604]
[1748848812462,17.99966897,156.61,156.58,6.38651168]
[1748848814663,25.03341367,156.65,156.58,6.38651168]
[1748848814893,17.99966897,156.6,156.58,6.38651168]
[1748848817289,17.99966897,156.59,156.58,6.38651168]
[1748848817697,17.99966897,156.6,156.58,6.38651168]
[1748848817863,28.47966897,156.6,156.57,6.38691958]
[1748848819370,17.99966897,156.59,156.57,6.38691958]
[1748848820771,10.48,156.6,156.54,41.96948161]
[1748848820772,17.99966897,156.58,156.56,6.38732754]
[1748848820970,29.12964886,156.6,156.56,6.38732754]
[1748848820971,17.99966897,156.57,156.56,6.38732754]
[1748848821989,17.99966897,156.57,156.54,6.3881436]
[1748848822192,17.99966897,156.55,156.54,6.3881436]
[1748848823179,17.99966897,156.55,156.52,6.38895987]
[1748848823385,17.99966897,156.54,156.52,6.38895987]
[1748848824191,173.93596441,156.59,156.52,6.38895987]
[1748848824192,17.99966897,156.53,156.52,6.38895987]
[1748848824893,28.47966897,156.54,156.52,6.38895987]
[1748848825494,17.99966897,156.53,156.51,6.38936809]
[1748848826277,28.47966897,156.54,156.51,6.38936809]
[1748848827408,28.47966897,156.54,156.47,39.62]
[1748848827409,18.64964886,156.51,156.47,6.39100146]
[1748848827571,17.99966897,156.5,156.47,6.39100146]
[1748848828476,18.64964886,156.51,156.47,6.39100146]
[1748848828680,17.99966897,156.5,156.47,6.39100146]
[1748848832889,17.99966897,156.49,156.47,6.39100146]
[1748848833194,17.99966897,156.48,156.47,6.39100146]
[1748848834691,18.64964886,156.49,156.45,22.3708171]
[1748848834995,17.99966897,156.48,156.45,22.3708171]
[1748848837291,18.64964886,156.49,156.45,22.3708171]
[1748848837477,17.99966897,156.48,156.45,22.3708171]
[1748848847903,10.4,156.49,156.46,17.99966897]
[1748848848812,28.39966897,156.49,156.45,40.37048607]
[1748848851117,10.4,156.49,156.45,22.3708171]
[1748848851419,17.99966897,156.48,156.45,22.3708171]
[1748848855595,10.4,156.49,156.45,22.3708171]
[1748848855797,17.99966897,156.48,156.45,22.3708171]
[1748848856993,28.39966897,156.49,156.45,40.37048607]
[1748848859316,195.94931783,156.52,156.47,17.99966897]
[1748848859934,195.94931783,156.52,156.48,17.99966897]
[1748848860094,177.94964886,156.52,156.48,17.99966897]
[1748848860297,195.94931783,156.52,156.48,17.99966897]
[1748848860530,195.94931783,156.52,156.47,17.99966897]
[1748848861321,195.94931783,156.52,156.48,22.36707565]
[1748848861948,177.94964886,156.52,156.48,22.36707565]
[1748848862152,195.94931783,156.52,156.48,22.36707565]
[1748848862457,10.4,156.52,156.5,17.99966897]
[1748848862753,10.4,156.55,156.51,17.99966897]
[1748848862939,10.4,156.55,156.52,17.99966897]
[1748848863344,10.4,156.55,156.54,6.3881436]
[1748848864941,22.41956433,156.59,156.54,6.3881436]
[1748848865144,32.81956433,156.59,156.56,17.99966897]
[1748848866329,32.81956433,156.59,156.57,6.38691958]
[1748848867642,50.8192333,156.59,156.57,6.38691958]
[1748848869236,50.8192333,156.59,156.55,6.38773554]
[1748848869823,32.81956433,156.59,156.55,6.38773554]
[1748848870025,50.8192333,156.59,156.55,6.38773554]
[1748848870526,50.8192333,156.59,156.55,17.99966897]
[1748848870750,10.4,156.59,156.57,17.99966897]
[1748848871048,10.4,156.59,156.56,17.99966897]
[1748848871350,10.4,156.59,156.55,17.99966897]
[1748848872448,28.39966897,156.59,156.56,6.38732754]
[1748848872649,17.99966897,156.57,156.56,6.38732754]
[1748848873032,17.99966897,156.58,156.56,6.38732754]
[1748848873346,28.39966897,156.59,156.56,6.38732754]
[1748848873546,10.4,156.59,156.56,24.38699651]
[1748848874327,10.4,156.59,156.56,40.35531536]
[1748848874727,10.4,156.59,156.57,17.99966897]
[1748848875728,10.4,156.59,156.56,22.35564639]
[1748848875924,10.4,156.59,156.56,40.35531536]
[1748848876129,28.39966897,156.59,156.56,6.38732754]
[1748848876784,10.4,156.59,156.56,24.38699651]
[1748848877232,36.64931783,156.61,156.57,17.99966897]
[1748848878234,36.64931783,156.61,156.56,40.35531536]
[1748848880437,36.64931783,156.61,156.57,17.99966897]
[1748848881658,36.64931783,156.61,156.56,40.35531536]
[1748848882757,18.64964886,156.61,156.56,22.35564639]
[1748848882965,36.64931783,156.61,156.56,40.35531536]
[1748848884167,17.99966897,156.57,156.56,6.38732754]
[1748848884941,17.99966897,156.57,156.54,6.3881436]
[1748848886367,17.99966897,156.55,156.54,6.3881436]
[1748848886942,17.99966897,156.55,156.51,6.38936809]
[1748848887153,167.54964886,156.57,156.51,6.38936809]
[1748848887352,17.99966897,156.53,156.51,6.38936809]
[1748848887542,17.99966897,156.52,156.51,6.38936809]
[1748848888473,18.64964886,156.54,156.51,6.38936809]
[1748848888846,17.99966897,156.54,156.51,6.38936809]
[1748848890853,17.99966897,156.53,156.51,6.38936809]
[1748848892869,17.99966897,156.53,156.5,6.38977635]
[1748848894557,17.99966897,156.54,156.5,6.38977635]
[1748848894951,17.99966897,156.53,156.5,6.38977635]
[1748848895565,18.64964886,156.5,156.48,6.39059304]
[1748848895749,17.99966897,156.5,156.48,6.39059304]
[1748848896868,17.99966897,156.5,156.47,6.39100146]
[1748848897069,17.99966897,156.48,156.47,6.39100146]
[1748848899053,17.99966897,156.48,156.45,6.39181847]
[1748848899462,17.99966897,156.49,156.45,6.39181847]
[1748848901166,17.99966897,156.49,156.45,24.39148744]
[1748848902374,17.99966897,156.49,156.45,40.37103362]
[1748848903160,166.89966897,156.5,156.46,17.99966897]
[1748848904183,166.89966897,156.5,156.47,6.39100146]
[1748848908980,148.9,156.5,156.48,17.99966897]
[1748848909184,1.6439,156.56,156.49,17.99966897]
[1748848909185,28.27966897,156.54,156.49,17.99966897]
[1748848909367,28.27966897,156.54,156.5,17.99966897]
[1748848910367,10.28,156.54,156.5,17.99966897]
[1748848910987,10.28,156.54,156.51,6.38936809]
[1748848912880,28.27966897,156.54,156.51,6.38936809]
[1748848916189,28.27966897,156.54,156.5,6.38977635]
[1748848917294,28.27966897,156.54,156.5,24.38944532]
[1748848917891,28.27966897,156.54,156.5,6.38977635]
[1748848917892,17.99966897,156.53,156.5,6.38977635]
[1748848927400,10.28,156.54,156.48,6.39059304]
[1748848927401,17.99966897,156.51,156.48,6.39059304]
[1748848927706,17.99966897,156.5,156.48,6.39059304]
[1748848928574,17.99966897,156.5,156.46,22.36900484]
[1748848928783,18.64964886,156.52,156.46,22.36900484]
[1748848928784,17.99966897,156.49,156.46,22.36900484]
[1748848930191,17.99966897,156.49,156.46,6.39140994]
[1748848930380,17.99966897,156.47,156.46,6.39140994]
[1748848931473,17.99966897,156.47,156.45,6.39181847]
[1748848933314,148.9,156.51,156.46,17.99966897]
[1748848933518,148.9,156.51,156.49,6.39018467]
[1748848934414,148.9,156.51,156.49,24.38985364]
[1748848934582,148.9,156.51,156.5,17.99966897]
[1748848934981,148.9,156.51,156.49,24.38985364]
[1748848935404,148.9,156.51,156.49,6.39018467]
[1748848937601,17.99966897,156.5,156.46,6.39140994]
[1748848938113,17.99966897,156.5,156.46,40.36960377]
[1748848938907,17.99966897,156.5,156.46,22.3699348]
[1748848939107,17.99966897,156.5,156.46,40.36960377]
[1748848940094,148.9,156.51,156.49,17.99966897]
[1748848940423,46.90931783,156.55,156.5,17.99966897]
[1748848940809,17.99966897,156.54,156.5,17.99966897]
[1748848941795,17.99966897,156.54,156.51,6.38936809]
[1748848944811,28.25966897,156.54,156.51,6.38936809]
[1748848944999,17.99966897,156.54,156.51,6.38936809]
[1748848945215,28.25966897,156.54,156.51,6.38936809]
[1748848946922,10.26,156.54,156.51,6.38936809]
[1748848947130,10.26,156.54,156.52,17.99966897]
[1748848947310,10.26,156.54,156.53,17.99966897]
[1748848948065,10.26,156.54,156.52,17.99966897]
[1748848949111,10.26,156.54,156.53,6.38855171]
[1748848951031,18.64964886,156.53,156.49,6.39018467]
[1748848951236,17.99966897,156.51,156.49,6.39018467]
[1748848952316,17.99966897,156.5,156.49,6.39018467]
[1748848953431,17.99966897,156.51,156.47,40.3681741]
[1748848954514,17.99966897,156.5,156.47,22.36850513]
[1748848956335,167.54964886,156.53,156.47,6.39100146]
[1748848956536,17.99966897,156.5,156.47,6.39100146]
[1748848957736,17.99966897,156.51,156.47,17.99966897]
[1748848959233,17.99966897,156.51,156.48,6.39059304]
[1748848959429,17.99966897,156.5,156.48,6.39059304]
[1748848961436,17.99966897,156.49,156.47,6.39100146]
[1748848961647,17.99966897,156.48,156.47,6.39100146]
[1748848962834,17.99966897,156.48,156.45,6.39181847]
[1748848966418,167.54964886,156.5,156.45,6.39181847]
[1748848966623,17.99966897,156.48,156.45,6.39181847]
[1748848966823,17.99966897,156.49,156.45,6.39181847]
[1748848967028,17.99966897,156.49,156.45,24.39148744]
[1748848968243,6.078,156.6,156.49,1.5561]
[1748848968423,24.07766897,156.6,156.55,17.99966897]
[1748848968625,43.99966897,156.6,156.55,17.99966897]
[1748848968823,43.99966897,156.6,156.54,17.99966897]
[1748848968824,36.64931783,156.59,156.54,17.99966897]
[1748848969026,17.99966897,156.57,156.52,17.99966897]
[1748848969429,17.99966897,156.56,156.52,17.99966897]
[1748848969627,18.64964886,156.58,156.52,17.99966897]
[1748848969829,17.99966897,156.56,156.52,17.99966897]
[1748848970322,17.99966897,156.54,156.5,24.38944532]
[1748848970925,17.99966897,156.54,156.5,6.38977635]
[1748848971624,17.99966897,156.53,156.5,6.38977635]
[1748848975135,17.99966897,156.53,156.46,39.32]
[1748848975136,17.99966897,156.51,156.47,6.39100146]
[1748848975436,173.93739596,156.55,156.47,6.39100146]
[1748848975437,17.99966897,156.5,156.47,6.39100146]
[1748848976271,148.9,156.54,156.48,17.99966897]
[1748848976468,17.99966897,156.52,156.48,17.99966897]
[1748848978256,17.99966897,156.52,156.49,6.39018467]
[1748848980453,17.99966897,156.52,156.48,22.36707565]
[1748848980856,17.99966897,156.51,156.48,22.36707565]
[1748848982646,148.9,156.53,156.48,22.36707565]
[1748848982847,17.99966897,156.51,156.48,22.36707565]
[1748848983436,17.99966897,156.51,156.45,15.97854856]
[1748848983437,17.99966897,156.49,156.45,15.97854856]
[1748848983644,17.99966897,156.47,156.45,15.97854856]
[1748848984057,17.99966897,156.48,156.45,15.97854856]
[1748848984856,148.9,156.5,156.45,15.97854856]
[1748848984857,166.89966897,156.5,156.45,40.370036]
[1748848985838,148.9,156.5,156.46,17.99966897]
[1748848986575,166.89966897,156.5,156.46,17.99966897]
[1748848986941,166.89966897,156.5,156.47,6.39100146]
[1748848988466,17.99966897,156.48,156.47,6.39100146]
[1748848989167,166.89966897,156.5,156.45,40.370036]
[1748848989370,166.89966897,156.5,156.46,17.99966897]
[1748848989764,148.9,156.5,156.47,17.99966897]
[1748848990746,17.99966897,156.49,156.45,40.370036]
[1748848991470,17.99966897,156.48,156.45,22.37036703]
[1748848992151,17.99966897,156.48,156.44,0.21706333]
[1748848992152,17.99966897,156.46,156.44,0.21706333]
[1748848992467,36.64931783,156.45,156.44,0.21706333]
[1748848997567,36.64931783,156.45,156.44,6.60929038]
[1748848997755,10.26,156.46,156.44,6.60929038]
[1748848998157,10.26,156.46,156.44,24.60895935]
[1748848998369,17.99966897,156.48,156.44,40.58952697]
[1748848998572,17.99966897,156.49,156.45,17.99966897]
[1748848998792,17.99966897,156.48,156.44,40.58952697]
[1748848999690,54.90964886,156.5,156.44,6.60929038]
[1748848999691,17.99966897,156.46,156.44,6.60929038]
[1748849000622,17.99966897,156.45,156.44,0.21706333]
[1748849000757,17.99966897,156.45,156.44,6.60929038]
[1748849001979,185.54931783,156.48,156.44,6.60929038]
[1748849002278,17.99966897,156.45,156.44,6.60929038]
[1748849009480,17.99966897,156.45,156.44,0.21706333]
[1748849010396,28.25966897,156.45,156.44,0.21706333]
[1748849010600,46.90931783,156.45,156.44,0.21706333]
[1748849011400,46.90931783,156.45,156.44,6.60929038]
[1748849013902,46.90931783,156.45,156.44,0.21706333]
[1748849014708,46.90931783,156.45,156.44,6.60929038]
[1748849015392,10.26,156.45,156.44,6.60929038]
[1748849015704,26.0,156.5,156.44,40.58952697]
[1748849015705,10.26,156.49,156.44,40.58952697]
[1748849016001,17.99966897,156.48,156.44,22.589858]
[1748849016201,17.99966897,156.47,156.44,22.589858]
[1748849016409,17.99966897,156.47,156.44,6.60929038]
[1748849016706,17.99966897,156.46,156.44,6.60929038]
[1748849019510,17.99966897,156.47,156.44,6.60929038]
[1748849019804,36.64931783,156.48,156.44,6.60929038]
[1748849020996,17.99966897,156.47,156.44,6.60929038]
[1748849032001,28.25966897,156.49,156.44,40.58952697]
[1748849032205,10.26,156.49,156.45,17.99966897]
[1748849032409,10.26,156.49,156.46,17.99966897]
[1748849032915,10.26,156.49,156.47,17.99966897]
[1748849033098,10.26,156.49,156.44,22.589858]
[1748849033099,10.26,156.49,156.46,17.99966897]
[1748849033300,10.26,156.49,156.45,17.99966897]
[1748849034023,10.26,156.49,156.46,6.39140994]
[1748849034905,28.25966897,156.49,156.46,6.39140994]
[1748849035106,17.99966897,156.48,156.46,6.39140994]
[1748849036224,17.99966897,156.48,156.45,6.39181847]
[1748849037623,28.25966897,156.49,156.45,24.39148744]
[1748849040426,28.25966897,156.49,156.45,6.39181847]
[1748849041026,28.25966897,156.49,156.45,40.37103362]
[1748849042610,17.99966897,156.47,156.45,6.39181847]
[1748849043121,17.99966897,156.46,156.45,6.39181847]
[1748849044020,17.99966897,156.46,156.44,6.60918304]
[1748849044337,17.99966897,156.45,156.44,6.60918304]
[1748849045038,17.99966897,156.46,156.44,6.60918304]
[1748849045233,18.64964886,156.47,156.44,6.60918304]
[1748849045536,17.99966897,156.46,156.44,6.60918304]
[1748849045725,18.64964886,156.47,156.44,6.60918304]
[1748849045726,36.64931783,156.47,156.44,6.60918304]
[1748849046036,18.64964886,156.48,156.44,6.60918304]
[1748849046225,17.99966897,156.47,156.44,6.60918304]
[1748849046420,17.99966897,156.46,156.44,6.60918304]
[1748849047214,18.64964886,156.48,156.44,24.60885201]
[1748849047419,36.64931783,156.48,156.44,24.60885201]
[1748849047640,36.64931783,156.48,156.44,40.58941963]
[1748849048846,36.64931783,156.48,156.44,22.58975066]
[1748849049523,54.25966897,156.49,156.44,40.58941963]
[1748849050846,10.26,156.49,156.45,17.99966897]
[1748849051226,10.26,156.49,156.46,17.99966897]
[1748849053182,10.26,156.49,156.47,6.39100146]